[Event "Titled Tuesday Blitz February 07 Early 2023"]
[White "Remizov, Yaroslav"]
[Black "Lianes Garcia, Marcos"]
[WhiteFideId "34134015"]
[BlackFideId "32060777"]
[WhiteElo "2421"]
[BlackElo "2411"]
[Result "0-1"]
[Round "09"]
[TimeControl "180+2"]
[Date "2023.02.07"]
[WhiteClock "0:01:15"]
[BlackClock "0:00:39"]

1. e4 {[%clk 0:02:55]}  g6 {[%clk 0:03:00]} 2. d4 {[%clk 0:02:54]}  Bg7 {[%clk 0:03:00]} 3. Nc3 {[%clk 0:02:53]}  c5 {[%clk 0:03:01]} 4. dxc5 {[%clk 0:02:52]}  Bxc3+ {[%clk 0:03:01]} 5. bxc3 {[%clk 0:02:52]}  Qa5 {[%clk 0:02:57]} 6. Qd4 {[%clk 0:02:47]}  Nf6 {[%clk 0:02:56]} 7. Qb4 {[%clk 0:02:46]}  Qc7 {[%clk 0:02:56]} 8. Nf3 {[%clk 0:02:42]}  Nc6 {[%clk 0:02:49]} 9. Qa4 {[%clk 0:02:42]}  Ne5 {[%clk 0:02:49]} 10. Be3 {[%clk 0:02:37]}  Neg4 {[%clk 0:02:47]} 11. Bd4 {[%clk 0:02:28]}  e5 {[%clk 0:02:48]} 12. Be3 {[%clk 0:02:22]}  Nxe3 {[%clk 0:02:47]} 13. fxe3 {[%clk 0:02:23]}  Qxc5 {[%clk 0:02:45]} 14. Bd3 {[%clk 0:02:16]}  Qxe3+ {[%clk 0:02:41]} 15. Kd1 {[%clk 0:02:10]}  Ng4 {[%clk 0:02:40]} 16. Rf1 {[%clk 0:02:09]}  Nf2+ {[%clk 0:02:33]} 17. Rxf2 {[%clk 0:02:10]}  Qxf2 {[%clk 0:02:34]} 18. Kc1 {[%clk 0:02:11]}  Qc5 {[%clk 0:02:31]} 19. Bc4 {[%clk 0:02:08]}  O-O {[%clk 0:02:28]} 20. Bb3 {[%clk 0:02:06]}  Qxc3 {[%clk 0:02:23]} 21. Rb1 {[%clk 0:02:07]}  d6 {[%clk 0:02:20]} 22. Qa3 {[%clk 0:02:06]}  Qc5 {[%clk 0:02:18]} 23. Qa4 {[%clk 0:02:03]}  b5 {[%clk 0:02:07]} 24. Qa5 {[%clk 0:02:00]}  Bd7 {[%clk 0:02:07]} 25. Qd2 {[%clk 0:01:59]}  Kg7 {[%clk 0:02:03]} 26. h4 {[%clk 0:01:59]}  a5 {[%clk 0:01:58]} 27. h5 {[%clk 0:01:57]}  a4 {[%clk 0:01:36]} 28. Bd5 {[%clk 0:01:55]}  Rac8 {[%clk 0:01:33]} 29. Rb2 {[%clk 0:01:53]}  f6 {[%clk 0:01:22]} 30. a3 {[%clk 0:01:44]}  Qxa3 {[%clk 0:01:16]} 31. Kb1 {[%clk 0:01:41]}  Qc3 {[%clk 0:01:14]} 32. Qf2 {[%clk 0:01:35]}  b4 {[%clk 0:01:11]} 33. h6+ {[%clk 0:01:26]}  Kh8 {[%clk 0:01:11]} 34. Qa7 {[%clk 0:01:25]}  Rc7 {[%clk 0:01:08]} 35. Qb6 {[%clk 0:01:26]}  Qc5 {[%clk 0:00:59]} 36. Qxb4 {[%clk 0:01:23]}  Qxb4 {[%clk 0:00:58]} 37. Rxb4 {[%clk 0:01:24]}  Bc6 {[%clk 0:00:54]} 38. Rc4 {[%clk 0:01:18]}  Rb7+ {[%clk 0:00:40]} 39. Kc1 {[%clk 0:01:18]}  Bxd5 {[%clk 0:00:41]} 40. exd5 {[%clk 0:01:19]}  Ra8 {[%clk 0:00:38]} 41. Nd2 {[%clk 0:01:16]}  a3 {[%clk 0:00:39]} 42. Nb3 {[%clk 0:01:17]}  a2 {[%clk 0:00:39]} 43. Kd2 {[%clk 0:01:16]}  Rxb3 {[%clk 0:00:39]} 44. Ra4 {[%clk 0:01:15]}  Rxa4 {[%clk 0:00:39]} 0-1


[Site "https://www.chess.com"]

[Event "Titled Tuesday Blitz February 07 Early 2023"]
[White "Belozerov, Andrei"]
[Black "Aitbayev, Aslan"]
[WhiteFideId "4120213"]
[BlackFideId "13704613"]
[WhiteElo "2461"]
[BlackElo "2427"]
[Result "1-0"]
[Round "09"]
[TimeControl "180+2"]
[Date "2023.02.07"]
[WhiteClock "0:00:03"]
[BlackClock "0:00:06"]

1. e4 {[%clk 0:03:00]}  d6 {[%clk 0:02:59]} 2. d4 {[%clk 0:03:00]}  g6 {[%clk 0:02:59]} 3. Nc3 {[%clk 0:02:59]}  a6 {[%clk 0:02:59]} 4. Nf3 {[%clk 0:02:54]}  Bg7 {[%clk 0:02:57]} 5. Be3 {[%clk 0:02:53]}  b5 {[%clk 0:02:55]} 6. Qd2 {[%clk 0:02:51]}  Nf6 {[%clk 0:02:52]} 7. e5 {[%clk 0:02:19]}  b4 {[%clk 0:02:46]} 8. exf6 {[%clk 0:01:59]}  bxc3 {[%clk 0:02:45]} 9. Qxc3 {[%clk 0:02:00]}  exf6 {[%clk 0:02:45]} 10. d5 {[%clk 0:01:31]}  O-O {[%clk 0:02:41]} 11. O-O-O {[%clk 0:01:31]}  Nd7 {[%clk 0:02:36]} 12. Nd4 {[%clk 0:01:28]}  f5 {[%clk 0:02:31]} 13. Qa5 {[%clk 0:01:15]}  Qf6 {[%clk 0:02:13]} 14. c3 {[%clk 0:01:12]}  Nb6 {[%clk 0:02:08]} 15. Nc6 {[%clk 0:01:09]}  Bd7 {[%clk 0:02:02]} 16. h4 {[%clk 0:00:53]}  Bxc6 {[%clk 0:01:45]} 17. dxc6 {[%clk 0:00:51]}  Qe6 {[%clk 0:01:40]} 18. Bxb6 {[%clk 0:00:38]}  cxb6 {[%clk 0:01:39]} 19. Qd5 {[%clk 0:00:38]}  Qxd5 {[%clk 0:01:29]} 20. Rxd5 {[%clk 0:00:37]}  Be5 {[%clk 0:01:30]} 21. g3 {[%clk 0:00:35]}  f4 {[%clk 0:01:29]} 22. gxf4 {[%clk 0:00:21]}  Bxf4+ {[%clk 0:01:29]} 23. Kc2 {[%clk 0:00:20]}  Rfc8 {[%clk 0:01:21]} 24. Bg2 {[%clk 0:00:20]}  Ra7 {[%clk 0:01:21]} 25. Rd3 {[%clk 0:00:18]}  Re7 {[%clk 0:01:19]} 26. Bf3 {[%clk 0:00:16]}  h5 {[%clk 0:01:16]} 27. a4 {[%clk 0:00:16]}  Re6 {[%clk 0:01:09]} 28. b4 {[%clk 0:00:14]}  Rf6 {[%clk 0:00:59]} 29. Kb3 {[%clk 0:00:14]}  Be5 {[%clk 0:00:58]} 30. Rhd1 {[%clk 0:00:12]}  Kf8 {[%clk 0:00:57]} 31. R1d2 {[%clk 0:00:12]}  Ke7 {[%clk 0:00:56]} 32. Bd5 {[%clk 0:00:11]}  Rf4 {[%clk 0:00:56]} 33. Re3 {[%clk 0:00:09]}  Rxh4 {[%clk 0:00:52]} 34. Rd4 {[%clk 0:00:09]}  Rg4 {[%clk 0:00:13]} 35. f4 {[%clk 0:00:08]}  f6 {[%clk 0:00:11]} 36. fxe5 {[%clk 0:00:08]}  dxe5 {[%clk 0:00:12]} 37. Rd2 {[%clk 0:00:05]}  h4 {[%clk 0:00:11]} 38. Bf3 {[%clk 0:00:05]}  Rg3 {[%clk 0:00:11]} 39. Rd7+ {[%clk 0:00:05]}  Ke8 {[%clk 0:00:10]} 40. Red3 {[%clk 0:00:06]}  f5 {[%clk 0:00:09]} 41. Bd5 {[%clk 0:00:04]}  Rxd3 {[%clk 0:00:08]} 42. Kc4 {[%clk 0:00:04]}  Rd1 {[%clk 0:00:08]} 43. Bf7+ {[%clk 0:00:04]}  Kf8 {[%clk 0:00:07]} 44. Rxd1 {[%clk 0:00:05]}  Kxf7 {[%clk 0:00:08]} 45. b5 {[%clk 0:00:04]}  axb5+ {[%clk 0:00:08]} 46. axb5 {[%clk 0:00:05]}  h3 {[%clk 0:00:08]} 47. Rh1 {[%clk 0:00:05]}  Rh8 {[%clk 0:00:06]} 48. Kd5 {[%clk 0:00:05]}  Kf6 {[%clk 0:00:06]} 49. c7 {[%clk 0:00:05]}  g5 {[%clk 0:00:04]} 50. Rxh3 {[%clk 0:00:05]}  Rxh3 {[%clk 0:00:05]} 51. c8=Q {[%clk 0:00:05]}  Rd3+ {[%clk 0:00:05]} 52. Kc4 {[%clk 0:00:05]}  e4 {[%clk 0:00:06]} 53. Qc6+ {[%clk 0:00:05]}  Ke5 {[%clk 0:00:07]} 54. Qxb6 {[%clk 0:00:05]}  g4 {[%clk 0:00:06]} 55. Qc7+ {[%clk 0:00:06]}  Ke6 {[%clk 0:00:06]} 56. b6 {[%clk 0:00:06]}  g3 {[%clk 0:00:07]} 57. Qc6+ {[%clk 0:00:05]}  Rd6 {[%clk 0:00:05]} 58. Qe8+ {[%clk 0:00:05]}  Kf6 {[%clk 0:00:05]} 59. Qf8+ {[%clk 0:00:05]}  Ke5 {[%clk 0:00:05]} 60. Qg7+ {[%clk 0:00:04]}  Kf4 {[%clk 0:00:04]} 61. Qc7 {[%clk 0:00:02]}  Ke5 {[%clk 0:00:05]} 62. Kc5 {[%clk 0:00:02]}  Kf4 {[%clk 0:00:04]} 63. Qxd6+ {[%clk 0:00:03]}  Kf3 {[%clk 0:00:05]} 64. Qd1+ {[%clk 0:00:02]}  Kf2 {[%clk 0:00:05]} 65. b7 {[%clk 0:00:03]}  g2 {[%clk 0:00:06]} 66. b8=Q {[%clk 0:00:03]}  g1=Q {[%clk 0:00:06]} 67. Qf4+ {[%clk 0:00:03]}  Kg2+ {[%clk 0:00:06]} 1-0


[Site "https://www.chess.com"]

[Event "Titled Tuesday Blitz February 07 Early 2023"]
[White "Vakhlamov, Igor L."]
[Black "Megalios, Konstantinos"]
[WhiteFideId "24126748"]
[BlackFideId "4238044"]
[WhiteElo "2413"]
[BlackElo "2372"]
[Result "1-0"]
[Round "09"]
[TimeControl "180+2"]
[Date "2023.02.07"]
[WhiteClock "0:00:30"]
[BlackClock "0:00:04"]

1. e4 {[%clk 0:02:58]}  c5 {[%clk 0:02:57]} 2. Nf3 {[%clk 0:02:58]}  Nc6 {[%clk 0:02:57]} 3. Nc3 {[%clk 0:02:58]}  g6 {[%clk 0:02:57]} 4. d4 {[%clk 0:02:58]}  cxd4 {[%clk 0:02:58]} 5. Nxd4 {[%clk 0:02:59]}  Bg7 {[%clk 0:02:58]} 6. Nxc6 {[%clk 0:02:59]}  bxc6 {[%clk 0:02:57]} 7. Bc4 {[%clk 0:03:00]}  d6 {[%clk 0:02:54]} 8. O-O {[%clk 0:03:00]}  Qc7 {[%clk 0:02:13]} 9. Bg5 {[%clk 0:02:57]}  Nf6 {[%clk 0:02:13]} 10. Qd2 {[%clk 0:02:54]}  O-O {[%clk 0:02:09]} 11. Bh6 {[%clk 0:02:54]}  Rb8 {[%clk 0:02:01]} 12. Bb3 {[%clk 0:02:52]}  Ba6 {[%clk 0:01:57]} 13. Rfe1 {[%clk 0:02:52]}  Nd7 {[%clk 0:01:52]} 14. Rad1 {[%clk 0:02:47]}  Ne5 {[%clk 0:01:32]} 15. Bxg7 {[%clk 0:02:44]}  Kxg7 {[%clk 0:01:31]} 16. h3 {[%clk 0:02:35]}  Rfd8 {[%clk 0:01:27]} 17. f4 {[%clk 0:02:30]}  Qb6+ {[%clk 0:01:18]} 18. Kh1 {[%clk 0:02:27]}  Nc4 {[%clk 0:01:17]} 19. Bxc4 {[%clk 0:02:26]}  Bxc4 {[%clk 0:01:18]} 20. b3 {[%clk 0:02:27]}  Ba6 {[%clk 0:01:14]} 21. f5 {[%clk 0:02:25]}  Qc5 {[%clk 0:01:12]} 22. Na4 {[%clk 0:02:14]}  Qe5 {[%clk 0:01:10]} 23. c4 {[%clk 0:02:14]}  c5 {[%clk 0:01:04]} 24. Nc3 {[%clk 0:02:11]}  Bb7 {[%clk 0:01:03]} 25. Nd5 {[%clk 0:02:11]}  e6 {[%clk 0:00:34]} 26. f6+ {[%clk 0:02:06]}  Kh8 {[%clk 0:00:34]} 27. Qh6 {[%clk 0:02:06]}  Rg8 {[%clk 0:00:32]} 28. Ne7 {[%clk 0:02:05]}  Bxe4 {[%clk 0:00:24]} 29. Nxg8 {[%clk 0:02:04]}  Rxg8 {[%clk 0:00:25]} 30. Qe3 {[%clk 0:01:45]}  d5 {[%clk 0:00:21]} 31. cxd5 {[%clk 0:01:46]}  exd5 {[%clk 0:00:21]} 32. Qxc5 {[%clk 0:01:47]}  Qxf6 {[%clk 0:00:20]} 33. Qxa7 {[%clk 0:01:43]}  Qg5 {[%clk 0:00:18]} 34. Qd4+ {[%clk 0:01:37]}  f6 {[%clk 0:00:18]} 35. Rxe4 {[%clk 0:01:30]}  dxe4 {[%clk 0:00:18]} 36. Qxe4 {[%clk 0:01:31]}  Rc8 {[%clk 0:00:16]} 37. Kh2 {[%clk 0:01:19]}  Kg7 {[%clk 0:00:13]} 38. Rd7+ {[%clk 0:01:17]}  Kh6 {[%clk 0:00:13]} 39. Rd4 {[%clk 0:01:09]}  Kg7 {[%clk 0:00:06]} 40. Qb7+ {[%clk 0:00:36]}  Kh6 {[%clk 0:00:05]} 41. Qe4 {[%clk 0:00:34]}  Rc1 {[%clk 0:00:03]} 42. Qh4+ {[%clk 0:00:34]}  Qxh4 {[%clk 0:00:03]} 43. Rxh4+ {[%clk 0:00:34]}  Kg5 {[%clk 0:00:04]} 44. Rc4 {[%clk 0:00:33]}  Ra1 {[%clk 0:00:04]} 45. a4 {[%clk 0:00:33]}  Rb1 {[%clk 0:00:03]} 46. b4 {[%clk 0:00:32]}  f5 {[%clk 0:00:04]} 47. a5 {[%clk 0:00:32]}  f4 {[%clk 0:00:04]} 48. a6 {[%clk 0:00:31]}  Ra1 {[%clk 0:00:03]} 49. b5 {[%clk 0:00:31]}  Ra2 {[%clk 0:00:04]} 50. Kg1 {[%clk 0:00:30]} 1-0


[Site "https://www.chess.com"]

[Event "Titled Tuesday Blitz February 07 Early 2023"]
[White "Kalogeris, Ioannis"]
[Black "Ahmadzada, Ahmad"]
[WhiteFideId "4239563"]
[BlackFideId "13413007"]
[WhiteElo "2423"]
[BlackElo "2488"]
[Result "0-1"]
[Round "09"]
[TimeControl "180+2"]
[Date "2023.02.07"]
[WhiteClock "0:00:19"]
[BlackClock "0:00:20"]

1. e4 {[%clk 0:03:00]}  d5 {[%clk 0:03:00]} 2. exd5 {[%clk 0:03:00]}  Qxd5 {[%clk 0:03:01]} 3. Nc3 {[%clk 0:03:00]}  Qd8 {[%clk 0:03:01]} 4. d4 {[%clk 0:03:00]}  Nf6 {[%clk 0:03:02]} 5. Nf3 {[%clk 0:03:00]}  Bg4 {[%clk 0:03:02]} 6. h3 {[%clk 0:02:59]}  Bxf3 {[%clk 0:03:02]} 7. Qxf3 {[%clk 0:02:58]}  c6 {[%clk 0:03:03]} 8. Be3 {[%clk 0:02:49]}  e6 {[%clk 0:03:03]} 9. O-O-O {[%clk 0:02:43]}  Nbd7 {[%clk 0:03:03]} 10. g4 {[%clk 0:02:39]}  Qa5 {[%clk 0:03:02]} 11. Kb1 {[%clk 0:02:38]}  Nd5 {[%clk 0:03:01]} 12. Nxd5 {[%clk 0:02:37]}  Qxd5 {[%clk 0:02:58]} 13. Qxd5 {[%clk 0:02:25]}  cxd5 {[%clk 0:02:58]} 14. f4 {[%clk 0:02:21]}  O-O-O {[%clk 0:02:58]} 15. f5 {[%clk 0:02:03]}  exf5 {[%clk 0:02:55]} 16. Bf4 {[%clk 0:01:38]}  fxg4 {[%clk 0:02:53]} 17. Rd3 {[%clk 0:01:38]}  Nb8 {[%clk 0:02:42]} 18. Be2 {[%clk 0:01:31]}  g6 {[%clk 0:02:35]} 19. hxg4 {[%clk 0:01:31]}  Bd6 {[%clk 0:02:29]} 20. Rf3 {[%clk 0:01:27]}  Bxf4 {[%clk 0:02:23]} 21. Rxf4 {[%clk 0:01:28]}  Nc6 {[%clk 0:02:15]} 22. c3 {[%clk 0:01:25]}  Rd7 {[%clk 0:02:07]} 23. g5 {[%clk 0:01:25]}  Kc7 {[%clk 0:02:03]} 24. Bf3 {[%clk 0:01:20]}  Nd8 {[%clk 0:02:01]} 25. Bg4 {[%clk 0:01:13]}  Re7 {[%clk 0:01:48]} 26. Rf6 {[%clk 0:01:09]}  Ne6 {[%clk 0:01:45]} 27. Bxe6 {[%clk 0:01:09]}  fxe6 {[%clk 0:01:46]} 28. Rxg6 {[%clk 0:01:08]}  hxg6 {[%clk 0:01:44]} 29. Rxh8 {[%clk 0:01:07]}  e5 {[%clk 0:01:42]} 30. Rg8 {[%clk 0:00:58]}  e4 {[%clk 0:00:42]} 31. Kc1 {[%clk 0:00:52]}  Rf7 {[%clk 0:00:40]} 32. Rxg6 {[%clk 0:00:52]}  Rf1+ {[%clk 0:00:40]} 33. Kd2 {[%clk 0:00:50]}  Rf2+ {[%clk 0:00:41]} 34. Ke3 {[%clk 0:00:46]}  Rxb2 {[%clk 0:00:41]} 35. Rf6 {[%clk 0:00:44]}  Rxa2 {[%clk 0:00:37]} 36. Rf2 {[%clk 0:00:30]}  Rxf2 {[%clk 0:00:32]} 37. Kxf2 {[%clk 0:00:31]}  Kd6 {[%clk 0:00:32]} 38. g6 {[%clk 0:00:30]}  Ke7 {[%clk 0:00:30]} 39. c4 {[%clk 0:00:29]}  Kf6 {[%clk 0:00:21]} 40. cxd5 {[%clk 0:00:20]}  Kxg6 {[%clk 0:00:21]} 41. Ke3 {[%clk 0:00:21]}  Kf5 {[%clk 0:00:20]} 42. d6 {[%clk 0:00:19]}  Ke6 {[%clk 0:00:20]} 43. Kxe4 {[%clk 0:00:19]}  Kxd6 {[%clk 0:00:21]} 44. Kd3 {[%clk 0:00:19]}  Kd5 {[%clk 0:00:21]} 45. Kc3 {[%clk 0:00:19]}  a5 {[%clk 0:00:20]} 46. Kd3 {[%clk 0:00:19]}  b5 {[%clk 0:00:19]} 47. Kc3 {[%clk 0:00:19]}  b4+ {[%clk 0:00:20]} 0-1


[Site "https://www.chess.com"]

[Event "Titled Tuesday Blitz February 07 Early 2023"]
[White "Moksh Amit Doshi"]
[Black "Kilic, Eray"]
[WhiteFideId "25064967"]
[BlackFideId "44517173"]
[WhiteElo "2401"]
[BlackElo "2414"]
[Result "0-1"]
[Round "09"]
[TimeControl "180+2"]
[Date "2023.02.07"]
[WhiteClock "0:00:22"]
[BlackClock "0:00:17"]

1. d4 {[%clk 0:02:45]}  Nf6 {[%clk 0:02:59]} 2. Nf3 {[%clk 0:02:37]}  g6 {[%clk 0:02:58]} 3. c4 {[%clk 0:02:34]}  Bg7 {[%clk 0:02:58]} 4. g3 {[%clk 0:02:34]}  O-O {[%clk 0:02:58]} 5. Bg2 {[%clk 0:02:35]}  d5 {[%clk 0:02:58]} 6. O-O {[%clk 0:02:33]}  c6 {[%clk 0:02:57]} 7. b3 {[%clk 0:02:31]}  Nbd7 {[%clk 0:02:52]} 8. Bb2 {[%clk 0:02:29]}  Ne4 {[%clk 0:02:51]} 9. e3 {[%clk 0:02:27]}  Ndf6 {[%clk 0:02:49]} 10. Nc3 {[%clk 0:02:26]}  Nxc3 {[%clk 0:02:49]} 11. Bxc3 {[%clk 0:02:27]}  Ne4 {[%clk 0:02:49]} 12. Bb2 {[%clk 0:02:27]}  Bg4 {[%clk 0:02:44]} 13. h3 {[%clk 0:02:26]}  Bd7 {[%clk 0:02:43]} 14. Qe2 {[%clk 0:02:25]}  Qc8 {[%clk 0:02:34]} 15. Kh2 {[%clk 0:02:24]}  Qb8 {[%clk 0:02:28]} 16. Rac1 {[%clk 0:02:19]}  a5 {[%clk 0:02:19]} 17. cxd5 {[%clk 0:02:14]}  cxd5 {[%clk 0:02:20]} 18. Ne5 {[%clk 0:02:15]}  Be8 {[%clk 0:02:19]} 19. Qc2 {[%clk 0:01:50]}  Bb5 {[%clk 0:02:12]} 20. Rfd1 {[%clk 0:01:48]}  Rc8 {[%clk 0:02:00]} 21. Qxc8+ {[%clk 0:01:30]}  Qxc8 {[%clk 0:02:01]} 22. Rxc8+ {[%clk 0:01:30]}  Rxc8 {[%clk 0:02:02]} 23. Bxe4 {[%clk 0:01:30]}  dxe4 {[%clk 0:02:01]} 24. Rc1 {[%clk 0:01:31]}  Rxc1 {[%clk 0:01:36]} 25. Bxc1 {[%clk 0:01:31]}  Bxe5 {[%clk 0:01:13]} 26. dxe5 {[%clk 0:01:32]}  Kf8 {[%clk 0:01:12]} 27. a4 {[%clk 0:01:29]}  Bd3 {[%clk 0:01:10]} 28. Bd2 {[%clk 0:01:29]}  Bc2 {[%clk 0:01:09]} 29. Bxa5 {[%clk 0:01:28]}  Bxb3 {[%clk 0:01:09]} 30. Bb4 {[%clk 0:01:29]}  Bxa4 {[%clk 0:01:10]} 31. Kg1 {[%clk 0:01:27]}  Bb5 {[%clk 0:01:08]} 32. Kg2 {[%clk 0:01:24]}  Ke8 {[%clk 0:01:06]} 33. f3 {[%clk 0:01:24]}  Bd3 {[%clk 0:00:58]} 34. fxe4 {[%clk 0:01:20]}  Bxe4+ {[%clk 0:00:57]} 35. Kf2 {[%clk 0:01:21]}  Kd7 {[%clk 0:00:58]} 36. Ke2 {[%clk 0:01:21]}  e6 {[%clk 0:00:55]} 37. Kd2 {[%clk 0:01:20]}  Kc6 {[%clk 0:00:49]} 38. Be7 {[%clk 0:01:11]}  Kd5 {[%clk 0:00:47]} 39. Bf6 {[%clk 0:01:05]}  Bf5 {[%clk 0:00:46]} 40. h4 {[%clk 0:01:04]}  Ke4 {[%clk 0:00:45]} 41. Bg5 {[%clk 0:01:03]}  Kxe5 {[%clk 0:00:45]} 42. Bf4+ {[%clk 0:00:56]}  Ke4 {[%clk 0:00:44]} 43. Bb8 {[%clk 0:00:51]}  Kf3 {[%clk 0:00:32]} 44. Bd6 {[%clk 0:00:51]}  Be4 {[%clk 0:00:26]} 45. Be5 {[%clk 0:00:50]}  Bc6 {[%clk 0:00:26]} 46. Kd3 {[%clk 0:00:49]}  f6 {[%clk 0:00:20]} 47. Bxf6 {[%clk 0:00:45]}  Kxg3 {[%clk 0:00:21]} 48. Bg5 {[%clk 0:00:44]}  h6 {[%clk 0:00:21]} 49. Bxh6 {[%clk 0:00:43]}  Kxh4 {[%clk 0:00:22]} 50. Ke2 {[%clk 0:00:44]}  g5 {[%clk 0:00:21]} 51. Kf2 {[%clk 0:00:44]}  g4 {[%clk 0:00:21]} 52. Bf4 {[%clk 0:00:43]}  Be4 {[%clk 0:00:20]} 53. Bd6 {[%clk 0:00:43]}  b5 {[%clk 0:00:20]} 54. Be7+ {[%clk 0:00:41]}  Kh3 {[%clk 0:00:20]} 55. Bd6 {[%clk 0:00:42]}  e5 {[%clk 0:00:17]} 56. Bxe5 {[%clk 0:00:41]}  b4 {[%clk 0:00:18]} 57. Kg1 {[%clk 0:00:41]}  g3 {[%clk 0:00:17]} 58. Bb2 {[%clk 0:00:34]}  b3 {[%clk 0:00:17]} 59. Bc3 {[%clk 0:00:34]}  Kg4 {[%clk 0:00:17]} 60. Kf1 {[%clk 0:00:32]}  Kf3 {[%clk 0:00:18]} 61. Bd4 {[%clk 0:00:31]}  Bd3+ {[%clk 0:00:17]} 62. Kg1 {[%clk 0:00:31]}  Be4 {[%clk 0:00:15]} 63. Kf1 {[%clk 0:00:32]}  g2+ {[%clk 0:00:15]} 64. Kg1 {[%clk 0:00:32]}  Ke2 {[%clk 0:00:15]} 65. Be5 {[%clk 0:00:18]}  Kd3 {[%clk 0:00:16]} 66. Bd4 {[%clk 0:00:18]}  Kc2 {[%clk 0:00:17]} 67. Be5 {[%clk 0:00:18]}  b2 {[%clk 0:00:18]} 68. Bxb2 {[%clk 0:00:18]}  Kxb2 {[%clk 0:00:17]} 69. Kf2 {[%clk 0:00:19]}  Kc3 {[%clk 0:00:18]} 70. Kg1 {[%clk 0:00:20]}  Kd2 {[%clk 0:00:19]} 71. Kf2 {[%clk 0:00:21]}  Kd3 {[%clk 0:00:19]} 72. Kg1 {[%clk 0:00:21]}  Ke2 {[%clk 0:00:19]} 73. Kh2 {[%clk 0:00:21]}  Kf2 {[%clk 0:00:19]} 74. Kh3 {[%clk 0:00:22]}  g1=Q {[%clk 0:00:19]} 75. Kh4 {[%clk 0:00:23]}  Qg3+ {[%clk 0:00:19]} 76. Kh5 {[%clk 0:00:23]}  Qg6+ {[%clk 0:00:17]} 77. Kh4 {[%clk 0:00:22]}  Kf3 {[%clk 0:00:17]} 78. Kh3 {[%clk 0:00:22]}  Qg3# {[%clk 0:00:17]} 0-1


[Site "https://www.chess.com"]

[Event "Titled Tuesday Blitz February 07 Early 2023"]
[White "Defend, Balint"]
[Black "Harshavardhan G B"]
[WhiteFideId "17004853"]
[BlackFideId "25059009"]
[WhiteElo "1673"]
[BlackElo "2408"]
[Result "0-1"]
[Round "09"]
[TimeControl "180+2"]
[Date "2023.02.07"]
[WhiteClock "0:00:17"]
[BlackClock "0:00:44"]

1. e4 {[%clk 0:03:00]}  e5 {[%clk 0:02:59]} 2. Nf3 {[%clk 0:03:00]}  Nc6 {[%clk 0:02:59]} 3. Bc4 {[%clk 0:03:00]}  Nf6 {[%clk 0:02:58]} 4. d4 {[%clk 0:03:01]}  exd4 {[%clk 0:02:58]} 5. e5 {[%clk 0:03:02]}  d5 {[%clk 0:02:58]} 6. Bb5 {[%clk 0:03:01]}  Ne4 {[%clk 0:02:58]} 7. Nxd4 {[%clk 0:03:01]}  Bd7 {[%clk 0:02:58]} 8. Bxc6 {[%clk 0:03:00]}  bxc6 {[%clk 0:02:59]} 9. O-O {[%clk 0:03:01]}  Bc5 {[%clk 0:02:58]} 10. f3 {[%clk 0:03:01]}  Ng5 {[%clk 0:02:58]} 11. Be3 {[%clk 0:03:01]}  Bb6 {[%clk 0:02:57]} 12. f4 {[%clk 0:03:02]}  Ne4 {[%clk 0:02:57]} 13. Nd2 {[%clk 0:03:01]}  Nxd2 {[%clk 0:02:56]} 14. Qxd2 {[%clk 0:03:02]}  c5 {[%clk 0:02:56]} 15. Nf3 {[%clk 0:03:00]}  d4 {[%clk 0:02:56]} 16. Bf2 {[%clk 0:03:01]}  Bc6 {[%clk 0:02:39]} 17. c4 {[%clk 0:03:00]}  Qd7 {[%clk 0:02:36]} 18. Ne1 {[%clk 0:02:55]}  h5 {[%clk 0:02:27]} 19. Nd3 {[%clk 0:02:53]}  a5 {[%clk 0:02:26]} 20. a4 {[%clk 0:02:52]}  h4 {[%clk 0:02:24]} 21. h3 {[%clk 0:02:49]}  Qf5 {[%clk 0:02:23]} 22. Qe2 {[%clk 0:01:57]}  Rh6 {[%clk 0:02:14]} 23. Kh2 {[%clk 0:01:41]}  Be4 {[%clk 0:01:39]} 24. Rad1 {[%clk 0:01:40]}  O-O-O {[%clk 0:01:32]} 25. b4 {[%clk 0:01:35]}  axb4 {[%clk 0:01:31]} 26. a5 {[%clk 0:01:35]}  Ba7 {[%clk 0:01:31]} 27. Be1 {[%clk 0:01:18]}  Rg6 {[%clk 0:01:24]} 28. Rf2 {[%clk 0:01:18]}  Rg3 {[%clk 0:01:13]} 29. Nc1 {[%clk 0:01:00]}  Rh8 {[%clk 0:01:02]} 30. Qb2 {[%clk 0:00:43]}  Rh6 {[%clk 0:00:59]} 31. Ne2 {[%clk 0:00:43]}  Bxg2 {[%clk 0:00:50]} 32. Kg1 {[%clk 0:00:17]}  Qxh3 {[%clk 0:00:46]} 33. Nxg3 {[%clk 0:00:17]}  hxg3 {[%clk 0:00:46]} 34. Rxg2 {[%clk 0:00:17]}  Qh1# {[%clk 0:00:44]} 0-1


[Site "https://www.chess.com"]

[Event "Titled Tuesday Blitz February 07 Early 2023"]
[White "Panesso Rivera, Henry"]
[Black "Pakleza, Zbigniew"]
[WhiteFideId "4402707"]
[BlackFideId "1119290"]
[WhiteElo "2342"]
[BlackElo "2494"]
[Result "0-1"]
[Round "09"]
[TimeControl "180+2"]
[Date "2023.02.07"]
[WhiteClock "0:00:03"]
[BlackClock "0:00:02"]

1. Nf3 {[%clk 0:03:00]}  d5 {[%clk 0:03:00]} 2. g3 {[%clk 0:02:58]}  Nf6 {[%clk 0:03:00]} 3. Bg2 {[%clk 0:02:57]}  Bf5 {[%clk 0:03:00]} 4. d3 {[%clk 0:02:52]}  e6 {[%clk 0:03:00]} 5. Nbd2 {[%clk 0:02:52]}  h6 {[%clk 0:03:01]} 6. O-O {[%clk 0:02:53]}  Be7 {[%clk 0:03:01]} 7. Qe1 {[%clk 0:02:53]}  O-O {[%clk 0:03:01]} 8. e4 {[%clk 0:02:53]}  Bh7 {[%clk 0:03:02]} 9. e5 {[%clk 0:02:52]}  Nfd7 {[%clk 0:03:02]} 10. Qe2 {[%clk 0:02:52]}  c5 {[%clk 0:03:02]} 11. b3 {[%clk 0:02:52]}  Nc6 {[%clk 0:03:03]} 12. Bb2 {[%clk 0:02:52]}  Rc8 {[%clk 0:03:03]} 13. Rfe1 {[%clk 0:02:50]}  Nb4 {[%clk 0:03:01]} 14. Rec1 {[%clk 0:02:46]}  b5 {[%clk 0:03:01]} 15. a3 {[%clk 0:02:44]}  Nc6 {[%clk 0:03:01]} 16. c4 {[%clk 0:02:40]}  bxc4 {[%clk 0:02:58]} 17. dxc4 {[%clk 0:02:38]}  d4 {[%clk 0:02:56]} 18. Re1 {[%clk 0:02:25]}  Qb6 {[%clk 0:02:54]} 19. h4 {[%clk 0:02:07]}  Rfd8 {[%clk 0:02:53]} 20. g4 {[%clk 0:02:06]}  Na5 {[%clk 0:02:39]} 21. b4 {[%clk 0:02:06]}  cxb4 {[%clk 0:02:36]} 22. Bxd4 {[%clk 0:02:06]}  Bc5 {[%clk 0:02:24]} 23. axb4 {[%clk 0:01:54]}  Qxb4 {[%clk 0:02:25]} 24. Qe3 {[%clk 0:01:39]}  Nc6 {[%clk 0:02:05]} 25. Bxc5 {[%clk 0:01:17]}  Nxc5 {[%clk 0:02:06]} 26. g5 {[%clk 0:01:09]}  h5 {[%clk 0:02:07]} 27. g6 {[%clk 0:01:09]}  Bxg6 {[%clk 0:02:06]} 28. Qg5 {[%clk 0:00:51]}  a5 {[%clk 0:01:44]} 29. Nf1 {[%clk 0:00:42]}  Nd3 {[%clk 0:01:09]} 30. Ng3 {[%clk 0:00:22]}  Nxe1 {[%clk 0:01:02]} 31. Rxe1 {[%clk 0:00:23]}  Nd4 {[%clk 0:01:02]} 32. Re3 {[%clk 0:00:20]}  Qxc4 {[%clk 0:00:36]} 33. Nxh5 {[%clk 0:00:18]}  Nf5 {[%clk 0:00:37]} 34. Nxg7 {[%clk 0:00:14]}  Nxe3 {[%clk 0:00:31]} 35. fxe3 {[%clk 0:00:11]}  Kxg7 {[%clk 0:00:20]} 36. h5 {[%clk 0:00:11]}  Qc1+ {[%clk 0:00:12]} 37. Kf2 {[%clk 0:00:12]}  Rc2+ {[%clk 0:00:09]} 38. Kg3 {[%clk 0:00:12]}  Rdd2 {[%clk 0:00:07]} 39. Qf6+ {[%clk 0:00:10]}  Kg8 {[%clk 0:00:07]} 40. Nh4 {[%clk 0:00:04]}  Qe1+ {[%clk 0:00:05]} 41. Kh3 {[%clk 0:00:03]}  Rxg2 {[%clk 0:00:04]} 42. Qd8+ {[%clk 0:00:03]}  Kg7 {[%clk 0:00:03]} 43. h6+ {[%clk 0:00:03]}  Kh7 {[%clk 0:00:02]} 44. Nxg2 {[%clk 0:00:03]}  Bf5+ {[%clk 0:00:02]} 0-1


[Site "https://www.chess.com"]